[Event "*** SCC Grand Prix: Titled Tuesday Blitz"]
[Site "Chess.com"]
[Date "2020.09.08"]
[Round "2"]
[White "juancruzarias"]
[Black "SaraciNderim"]
[Result "1-0"]
[WhiteElo "2443"]
[BlackElo "2665"]
[TimeControl "180+1"]
[EndTime "10:17:09 PDT"]
[Termination "juancruzarias won on time"]

1. e4 {[%clk 0:03:00.9]} 1... c5 {[%clk 0:02:58.2]} 2. Nc3 {[%clk 0:03:00]} 2...
Nc6 {[%clk 0:02:56.2]} 3. Bb5 {[%clk 0:02:59.3]} 3... Nd4 {[%clk 0:02:55.2]} 4.
Bc4 {[%clk 0:02:59.1]} 4... g6 {[%clk 0:02:54.2]} 5. Nf3 {[%clk 0:02:58.4]} 5...
Bg7 {[%clk 0:02:53.6]} 6. Nxd4 {[%clk 0:02:58.5]} 6... Bxd4 {[%clk 0:02:50.2]}
7. O-O {[%clk 0:02:52.4]} 7... d6 {[%clk 0:02:50.2]} 8. d3 {[%clk 0:02:52.5]}
8... a6 {[%clk 0:02:47.2]} 9. Be3 {[%clk 0:02:52.1]} 9... Bxe3 {[%clk 0:02:37]}
10. fxe3 {[%clk 0:02:52.3]} 10... Nf6 {[%clk 0:02:36.8]} 11. Nd5 {[%clk
0:02:47.6]} 11... Nxd5 {[%clk 0:02:34.2]} 12. Bxd5 {[%clk 0:02:48.5]} 12... O-O
{[%clk 0:02:31]} 13. Qf3 {[%clk 0:02:47.6]} 13... Kg7 {[%clk 0:02:25.4]} 14. Qg3
{[%clk 0:02:46.1]} 14... e6 {[%clk 0:01:18.9]} 15. Bb3 {[%clk 0:02:44.5]} 15...
Qe7 {[%clk 0:01:13.5]} 16. Rf2 {[%clk 0:02:44.3]} 16... Bd7 {[%clk 0:01:08.9]}
17. Raf1 {[%clk 0:02:44.2]} 17... b5 {[%clk 0:01:07.6]} 18. a3 {[%clk
0:02:36.3]} 18... Rac8 {[%clk 0:01:06.5]} 19. h4 {[%clk 0:02:32.2]} 19... c4
{[%clk 0:01:05.7]} 20. Ba2 {[%clk 0:02:31.8]} 20... e5 {[%clk 0:01:01]} 21. h5
{[%clk 0:02:30.3]} 21... Be6 {[%clk 0:00:59.2]} 22. d4 {[%clk 0:02:26]} 22... f6
{[%clk 0:00:53.7]} 23. c3 {[%clk 0:02:24]} 23... g5 {[%clk 0:00:50.9]} 24. Bb1
{[%clk 0:02:14]} 24... h6 {[%clk 0:00:50.3]} 25. Bc2 {[%clk 0:02:14.2]} 25...
Qe8 {[%clk 0:00:39.1]} 26. Bd1 {[%clk 0:02:14.2]} 26... Rc7 {[%clk 0:00:27.5]}
27. Bg4 {[%clk 0:02:13.9]} 27... Bxg4 {[%clk 0:00:21.1]} 28. Qxg4 {[%clk
0:02:14.8]} 28... Re7 {[%clk 0:00:21.4]} 29. d5 {[%clk 0:01:58.6]} 29... Rb7
{[%clk 0:00:20]} 30. Rf5 {[%clk 0:01:57]} 30... a5 {[%clk 0:00:19.1]} 31. Qf3
{[%clk 0:01:57.1]} 31... Rbf7 {[%clk 0:00:17.1]} 32. Ra1 {[%clk 0:01:56.4]}
32... Qb8 {[%clk 0:00:15.9]} 33. Qf1 {[%clk 0:01:56.2]} 33... Qb6 {[%clk
0:00:15.7]} 34. Qe2 {[%clk 0:01:55.1]} 34... Rc7 {[%clk 0:00:15.2]} 35. Rf2
{[%clk 0:01:54.2]} 35... b4 {[%clk 0:00:14.7]} 36. axb4 {[%clk 0:01:54.4]} 36...
axb4 {[%clk 0:00:15]} 37. Qf3 {[%clk 0:01:55.3]} 37... bxc3 {[%clk 0:00:10.2]}
38. bxc3 {[%clk 0:01:55.3]} 38... Qb3 {[%clk 0:00:07.7]} 39. Rc1 {[%clk
0:01:49.9]} 39... Qa3 {[%clk 0:00:07.6]} 40. Rff1 {[%clk 0:01:47.8]} 40... Qa4
{[%clk 0:00:06.6]} 41. Qf5 {[%clk 0:01:47.7]} 41... Qe8 {[%clk 0:00:06.4]} 42.
g4 {[%clk 0:01:48.1]} 42... Rb7 {[%clk 0:00:06.5]} 43. Rb1 {[%clk 0:01:48.1]}
43... Rxb1 {[%clk 0:00:02.7]} 44. Rxb1 {[%clk 0:01:49]} 44... Qf7 {[%clk
0:00:02.6]} 45. Rb6 {[%clk 0:01:48.7]} 45... Rd8 {[%clk 0:00:02.4]} 46. Kf2
{[%clk 0:01:46.3]} 46... Rd7 {[%clk 0:00:02.6]} 47. Kf3 {[%clk 0:01:46.3]} 47...
Ra7 {[%clk 0:00:02.7]} 48. Rxd6 {[%clk 0:01:45.8]} 48... Ra1 {[%clk 0:00:02.4]}
49. Rd7 {[%clk 0:01:46.1]} 49... Rf1+ {[%clk 0:00:02.1]} 50. Ke2 {[%clk
0:01:46.4]} 1-0

[Event "*** SCC Grand Prix: Titled Tuesday Blitz"]
[Site "Chess.com"]
[Date "2020.09.08"]
[Round "2"]
[White "StellarChessPro"]
[Black "elohunter1999"]
[Result "1-0"]
[WhiteElo "2255"]
[BlackElo "2443"]
[TimeControl "180+1"]
[EndTime "10:17:09 PDT"]
[Termination "StellarChessPro won by resignation"]

1. d4 {[%clk 0:03:00.9]} 1... Nf6 {[%clk 0:02:59.1]} 2. Bg5 {[%clk 0:03:00.1]}
2... d5 {[%clk 0:02:54.6]} 3. Bxf6 {[%clk 0:03:00.4]} 3... gxf6 {[%clk
0:02:54.5]} 4. e3 {[%clk 0:03:01.3]} 4... c5 {[%clk 0:02:54.2]} 5. dxc5 {[%clk
0:03:01.4]} 5... Nc6 {[%clk 0:02:28.8]} 6. Nf3 {[%clk 0:02:59.5]} 6... e6 {[%clk
0:02:24.7]} 7. c4 {[%clk 0:02:59.9]} 7... dxc4 {[%clk 0:02:23]} 8. Qxd8+ {[%clk
0:02:59.3]} 8... Nxd8 {[%clk 0:02:21.4]} 9. Bxc4 {[%clk 0:03:00.2]} 9... Bxc5
{[%clk 0:02:21.4]} 10. Bb5+ {[%clk 0:03:00.9]} 10... Ke7 {[%clk 0:02:09.9]} 11.
Nc3 {[%clk 0:03:01.8]} 11... a6 {[%clk 0:02:09.3]} 12. Be2 {[%clk 0:03:01.9]}
12... b5 {[%clk 0:02:08.5]} 13. O-O {[%clk 0:03:00.3]} 13... Bb7 {[%clk
0:02:05.1]} 14. Rac1 {[%clk 0:03:00.5]} 14... Rc8 {[%clk 0:02:04.4]} 15. Rfd1
{[%clk 0:03:00.1]} 15... Nc6 {[%clk 0:01:48.3]} 16. Nd5+ {[%clk 0:02:47.5]}
16... exd5 {[%clk 0:01:43.1]} 17. Rxc5 {[%clk 0:02:47.9]} 17... Ne5 {[%clk
0:01:33.7]} 18. Rdc1 {[%clk 0:02:47]} 18... Rxc5 {[%clk 0:01:21.1]} 19. Rxc5
{[%clk 0:02:47.9]} 19... Kd6 {[%clk 0:01:21.3]} 20. Rc1 {[%clk 0:02:45.1]} 20...
Rb8 {[%clk 0:01:08.3]} 21. Nd4 {[%clk 0:02:44.2]} 21... Bc8 {[%clk 0:01:05.9]}
22. b3 {[%clk 0:02:40.1]} 22... Bd7 {[%clk 0:01:03.4]} 23. Kf1 {[%clk
0:02:31.7]} 23... Nc6 {[%clk 0:01:03.3]} 24. Ke1 {[%clk 0:02:21.3]} 24... Nxd4
{[%clk 0:01:00.5]} 25. exd4 {[%clk 0:02:22.2]} 25... a5 {[%clk 0:00:51.6]} 26.
Rc5 {[%clk 0:02:19.6]} 26... a4 {[%clk 0:00:48.3]} 27. Kd2 {[%clk 0:02:18.6]}
27... b4 {[%clk 0:00:29.5]} 28. Bd1 {[%clk 0:02:03.2]} 28... axb3 {[%clk
0:00:28.6]} 29. Bxb3 {[%clk 0:02:03]} 29... Bc6 {[%clk 0:00:29.2]} 30. Ra5
{[%clk 0:01:55.6]} 30... Ra8 {[%clk 0:00:28.4]} 31. Rxa8 {[%clk 0:01:53.5]}
31... Bxa8 {[%clk 0:00:29.3]} 32. Bc2 {[%clk 0:01:48.3]} 32... h6 {[%clk
0:00:28.5]} 33. Bd3 {[%clk 0:01:48.8]} 33... Bc6 {[%clk 0:00:28.2]} 34. Kc2
{[%clk 0:01:47.5]} 34... Ba4+ {[%clk 0:00:28]} 35. Kb2 {[%clk 0:01:48.2]} 35...
Kc6 {[%clk 0:00:24.8]} 36. Bc2 {[%clk 0:01:46]} 36... Kb5 {[%clk 0:00:23.2]} 37.
Bb3 {[%clk 0:01:43.8]} 37... Bxb3 {[%clk 0:00:19.6]} 38. axb3 {[%clk 0:01:36.3]}
38... Kc6 {[%clk 0:00:18.3]} 39. Kc2 {[%clk 0:01:36.7]} 39... Kd6 {[%clk
0:00:18.9]} 40. Kd2 {[%clk 0:01:37.4]} 40... Ke6 {[%clk 0:00:19.2]} 41. Ke3
{[%clk 0:01:38.3]} 41... Kf5 {[%clk 0:00:19.6]} 42. Kf3 {[%clk 0:01:38.3]} 42...
Kg5 {[%clk 0:00:19.7]} 43. Kg3 {[%clk 0:01:34.5]} 43... h5 {[%clk 0:00:18.5]}
44. h4+ {[%clk 0:01:32.3]} 44... Kf5 {[%clk 0:00:18.6]} 45. f3 {[%clk
0:01:32.7]} 45... Kg6 {[%clk 0:00:15.4]} 46. Kf4 {[%clk 0:01:32.5]} 46... Kh6
{[%clk 0:00:14.8]} 47. Kf5 {[%clk 0:01:29.9]} 47... Kg7 {[%clk 0:00:14.7]} 48.
g3 {[%clk 0:01:30.6]} 1-0

[Event "*** SCC Grand Prix: Titled Tuesday Blitz"]
[Site "Chess.com"]
[Date "2020.09.08"]
[Round "2"]
[White "KonstantinB_1983"]
[Black "Kobalia"]
[Result "1/2-1/2"]
[WhiteElo "2518"]
[BlackElo "2763"]
[TimeControl "180+1"]
[EndTime "10:17:19 PDT"]
[Termination "Game drawn by agreement"]

1. Nf3 {[%clk 0:03:00.9]} 1... d5 {[%clk 0:02:59.6]} 2. e3 {[%clk 0:02:59.8]}
2... Nf6 {[%clk 0:02:57.1]} 3. c4 {[%clk 0:02:59.9]} 3... c6 {[%clk 0:02:57.5]}
4. b3 {[%clk 0:02:58.4]} 4... Bg4 {[%clk 0:02:56]} 5. Bb2 {[%clk 0:02:57.4]}
5... e6 {[%clk 0:02:56.2]} 6. Be2 {[%clk 0:02:57]} 6... Bd6 {[%clk 0:02:56]} 7.
Ne5 {[%clk 0:02:52.1]} 7... Bxe2 {[%clk 0:02:54.7]} 8. Qxe2 {[%clk 0:02:51.5]}
8... Nbd7 {[%clk 0:02:54.4]} 9. f4 {[%clk 0:02:49.4]} 9... O-O {[%clk
0:02:50.2]} 10. O-O {[%clk 0:02:44.6]} 10... Qc7 {[%clk 0:02:49.8]} 11. Nxd7
{[%clk 0:02:38]} 11... Nxd7 {[%clk 0:02:50.7]} 12. d3 {[%clk 0:02:36.8]} 12...
Rae8 {[%clk 0:02:43.2]} 13. Nd2 {[%clk 0:02:34.7]} 13... f5 {[%clk 0:02:38.7]}
14. d4 {[%clk 0:02:25.8]} 14... Nf6 {[%clk 0:02:35]} 15. Rac1 {[%clk 0:02:23.6]}
15... Qe7 {[%clk 0:02:30.4]} 16. c5 {[%clk 0:02:19.4]} 16... Bc7 {[%clk
0:02:29.7]} 17. b4 {[%clk 0:02:19.5]} 17... Ne4 {[%clk 0:02:27.2]} 18. Nxe4
{[%clk 0:02:03.8]} 18... fxe4 {[%clk 0:02:25.6]} 19. b5 {[%clk 0:02:03.9]} 19...
g5 {[%clk 0:02:23.4]} 20. g3 {[%clk 0:01:57.1]} 20... gxf4 {[%clk 0:02:05.4]}
21. gxf4 {[%clk 0:01:47]} 21... Qh4 {[%clk 0:02:00.7]} 22. Kh1 {[%clk
0:01:38.8]} 22... Kh8 {[%clk 0:02:00.3]} 23. Rg1 {[%clk 0:01:36.7]} 23... Rg8
{[%clk 0:02:00.4]} 24. a4 {[%clk 0:01:31.8]} 24... Ba5 {[%clk 0:01:52.8]} 25.
Rcf1 {[%clk 0:01:24]} 25... Qh3 {[%clk 0:01:50.1]} 26. Bc1 {[%clk 0:01:19.6]}
26... Rxg1+ {[%clk 0:01:05.3]} 27. Rxg1 {[%clk 0:01:17.9]} 27... Rg8 {[%clk
0:01:06.2]} 28. Rxg8+ {[%clk 0:01:14.7]} 28... Kxg8 {[%clk 0:01:07.1]} 29. Qg2+
{[%clk 0:01:13.6]} 29... Qxg2+ {[%clk 0:01:06.7]} 30. Kxg2 {[%clk 0:01:13.8]}
30... Kf7 {[%clk 0:01:07.3]} 31. Kg3 {[%clk 0:01:13.5]} 31... Kg6 {[%clk
0:01:07.6]} 32. Kg4 {[%clk 0:01:12.3]} 32... h5+ {[%clk 0:01:07]} 33. Kg3 {[%clk
0:01:11]} 33... Be1+ {[%clk 0:01:03.2]} 34. Kg2 {[%clk 0:01:08.5]} 34... Kf5
{[%clk 0:01:02.5]} 35. Kf1 {[%clk 0:01:07.5]} 35... Bb4 {[%clk 0:00:59.3]} 36.
h3 {[%clk 0:01:04.5]} 36... Kf6 {[%clk 0:00:46.6]} 37. Ke2 {[%clk 0:00:58.5]}
37... Kf7 {[%clk 0:00:31.9]} 38. Bd2 {[%clk 0:00:57.6]} 38... Bxd2 {[%clk
0:00:25.5]} 39. Kxd2 {[%clk 0:00:57]} 39... a5 {[%clk 0:00:25.8]} 40. b6 {[%clk
0:00:54.6]} 40... Kg6 {[%clk 0:00:24.1]} 1/2-1/2

[Event "*** SCC Grand Prix: Titled Tuesday Blitz"]
[Site "Chess.com"]
[Date "2020.09.08"]
[Round "2"]
[White "Carnivoras"]
[Black "indfraeng"]
[Result "0-1"]
[WhiteElo "2640"]
[BlackElo "2340"]
[TimeControl "180+1"]
[EndTime "10:17:21 PDT"]
[Termination "indfraeng won by resignation"]

1. d4 {[%clk 0:03:00.9]} 1... d5 {[%clk 0:03:00]} 2. Nf3 {[%clk 0:03:01.8]} 2...
Nf6 {[%clk 0:02:59.6]} 3. g3 {[%clk 0:03:02.7]} 3... c5 {[%clk 0:02:59.7]} 4.
Bg2 {[%clk 0:03:03.2]} 4... Nc6 {[%clk 0:02:56.1]} 5. O-O {[%clk 0:03:03.7]}
5... g6 {[%clk 0:02:54.2]} 6. dxc5 {[%clk 0:03:02.4]} 6... Bg7 {[%clk
0:02:51.7]} 7. c3 {[%clk 0:02:50.7]} 7... O-O {[%clk 0:02:51.4]} 8. Nd4 {[%clk
0:02:50.9]} 8... a5 {[%clk 0:02:43.6]} 9. b3 {[%clk 0:02:15]} 9... Ne4 {[%clk
0:02:34.8]} 10. Ba3 {[%clk 0:02:09.5]} 10... Nxc3 {[%clk 0:02:11.9]} 11. Nxc3
{[%clk 0:02:10.4]} 11... Bxd4 {[%clk 0:02:05.6]} 12. Rc1 {[%clk 0:02:08.2]}
12... Be6 {[%clk 0:02:02.8]} 13. e3 {[%clk 0:01:53.6]} 13... Bxc3 {[%clk
0:01:42.3]} 14. Rxc3 {[%clk 0:01:54.5]} 14... Nb4 {[%clk 0:01:42.9]} 15. Qd2
{[%clk 0:01:45.8]} 15... Qd7 {[%clk 0:01:41.4]} 16. Rd1 {[%clk 0:01:43.5]} 16...
Rfd8 {[%clk 0:01:40.3]} 17. Bxb4 {[%clk 0:01:20.1]} 17... axb4 {[%clk
0:01:39.1]} 18. Rd3 {[%clk 0:01:20.7]} 18... Qc6 {[%clk 0:01:27.8]} 19. Qxb4
{[%clk 0:00:27.6]} 19... Rxa2 {[%clk 0:01:24.6]} 20. e4 {[%clk 0:00:28.2]} 20...
Bg4 {[%clk 0:00:49.9]} 21. exd5 {[%clk 0:00:27.5]} 21... Qf6 {[%clk 0:00:47.7]}
22. R3d2 {[%clk 0:00:15.6]} 22... Rxd2 {[%clk 0:00:43.7]} 23. Rxd2 {[%clk
0:00:16]} 23... Qa1+ {[%clk 0:00:37]} 24. Bf1 {[%clk 0:00:16.3]} 24... Bh3
{[%clk 0:00:37.6]} 25. Qc4 {[%clk 0:00:15.9]} 25... Rc8 {[%clk 0:00:35.2]} 26.
Rc2 {[%clk 0:00:13.2]} 26... Rxc5 {[%clk 0:00:34]} 27. Rc1 {[%clk 0:00:11]}
27... Qxc1 {[%clk 0:00:25.7]} 0-1

[Event "*** SCC Grand Prix: Titled Tuesday Blitz"]
[Site "Chess.com"]
[Date "2020.09.08"]
[Round "2"]
[White "DrMamaliga"]
[Black "XiaoKangZhong"]
[Result "0-1"]
[WhiteElo "2193"]
[BlackElo "2424"]
[TimeControl "180+1"]
[EndTime "10:17:21 PDT"]
[Termination "XiaoKangZhong won by resignation"]

1. c4 {[%clk 0:03:00.9]} 1... Nf6 {[%clk 0:02:57.2]} 2. Nf3 {[%clk 0:02:59.2]}
2... g6 {[%clk 0:02:54.7]} 3. b4 {[%clk 0:02:59]} 3... Bg7 {[%clk 0:02:54.1]} 4.
Bb2 {[%clk 0:02:58.2]} 4... O-O {[%clk 0:02:54.7]} 5. g3 {[%clk 0:02:57.5]} 5...
a5 {[%clk 0:02:54.6]} 6. b5 {[%clk 0:02:57.4]} 6... d5 {[%clk 0:02:53.6]} 7.
cxd5 {[%clk 0:02:45.8]} 7... Nxd5 {[%clk 0:02:52.6]} 8. Bxg7 {[%clk 0:02:45.2]}
8... Kxg7 {[%clk 0:02:53.5]} 9. Bg2 {[%clk 0:02:45.2]} 9... c5 {[%clk
0:02:30.8]} 10. bxc6 {[%clk 0:02:42.7]} 10... Nxc6 {[%clk 0:02:30.9]} 11. O-O
{[%clk 0:02:41]} 11... e5 {[%clk 0:02:28.3]} 12. d3 {[%clk 0:02:33]} 12... f6
{[%clk 0:02:20.2]} 13. Nbd2 {[%clk 0:02:21.6]} 13... Be6 {[%clk 0:02:19.1]} 14.
a4 {[%clk 0:02:20.3]} 14... Nc3 {[%clk 0:02:10.8]} 15. Qe1 {[%clk 0:02:19]}
15... Nb4 {[%clk 0:02:11.1]} 16. Nc4 {[%clk 0:02:10.5]} 16... Nxa4 {[%clk
0:01:54.2]} 17. Rxa4 {[%clk 0:01:47.3]} 17... b5 {[%clk 0:01:53.1]} 18. Ra1
{[%clk 0:01:42.6]} 18... Nc2 {[%clk 0:01:42]} 19. Qc3 {[%clk 0:01:37.3]} 19...
Nxa1 {[%clk 0:01:40.9]} 20. Ncxe5 {[%clk 0:01:30.5]} 20... Nb3 {[%clk
0:01:26.3]} 21. Rb1 {[%clk 0:01:28.8]} 21... b4 {[%clk 0:01:18.5]} 22. Qb2
{[%clk 0:01:22]} 22... fxe5 {[%clk 0:01:12.9]} 23. Nxe5 {[%clk 0:01:19.9]} 23...
Qf6 {[%clk 0:01:12.4]} 24. Bxa8 {[%clk 0:01:15.6]} 24... Rxa8 {[%clk 0:01:13.3]}
25. f4 {[%clk 0:01:03.9]} 25... a4 {[%clk 0:01:09.5]} 26. Qc2 {[%clk 0:00:56.7]}
26... Rc8 {[%clk 0:01:04.5]} 27. Qa2 {[%clk 0:00:50.1]} 27... Nc5 {[%clk
0:00:47.2]} 28. Qd2 {[%clk 0:00:40.8]} 28... a3 {[%clk 0:00:31.3]} 29. Qxb4
{[%clk 0:00:38.9]} 29... a2 {[%clk 0:00:31.2]} 30. Ra1 {[%clk 0:00:38.9]} 30...
Nd7 {[%clk 0:00:28.9]} 31. Qb7 {[%clk 0:00:31.9]} 31... Rd8 {[%clk 0:00:26.7]}
32. Rxa2 {[%clk 0:00:31.3]} 32... Bxa2 {[%clk 0:00:26.1]} 33. Nxd7 {[%clk
0:00:27.3]} 33... Qd4+ {[%clk 0:00:26]} 34. Kg2 {[%clk 0:00:25.7]} 34... Bd5+
{[%clk 0:00:24.9]} 0-1

[Event "*** SCC Grand Prix: Titled Tuesday Blitz"]
[Site "Chess.com"]
[Date "2020.09.08"]
[Round "2"]
[White "GameOverBro"]
[Black "nitpicker"]
[Result "1-0"]
[WhiteElo "2456"]
[BlackElo "2238"]
[TimeControl "180+1"]
[EndTime "10:17:23 PDT"]
[Termination "GameOverBro won on time"]

1. e4 {[%clk 0:03:00.9]} 1... d5 {[%clk 0:02:57.6]} 2. exd5 {[%clk 0:03:00.3]}
2... Qxd5 {[%clk 0:02:57.7]} 3. Nc3 {[%clk 0:03:00]} 3... Qd8 {[%clk 0:02:57.6]}
4. d4 {[%clk 0:02:57.9]} 4... Nf6 {[%clk 0:02:57.4]} 5. Bc4 {[%clk 0:02:57.8]}
5... a6 {[%clk 0:02:57.1]} 6. Nf3 {[%clk 0:02:56.4]} 6... b5 {[%clk 0:02:54.6]}
7. Bb3 {[%clk 0:02:56.3]} 7... Bb7 {[%clk 0:02:48]} 8. Bf4 {[%clk 0:02:51.9]}
8... e6 {[%clk 0:02:45.1]} 9. Qe2 {[%clk 0:02:47.1]} 9... Bd6 {[%clk 0:02:32.1]}
10. Ne5 {[%clk 0:02:44.8]} 10... O-O {[%clk 0:02:23.9]} 11. Rd1 {[%clk
0:02:40.7]} 11... Nbd7 {[%clk 0:02:23.3]} 12. O-O {[%clk 0:02:38.7]} 12... Qe7
{[%clk 0:02:23.5]} 13. Rfe1 {[%clk 0:02:35.9]} 13... c5 {[%clk 0:02:06.8]} 14.
dxc5 {[%clk 0:02:25]} 14... Bxc5 {[%clk 0:02:06.9]} 15. Nxd7 {[%clk 0:02:10.7]}
15... Nxd7 {[%clk 0:02:05.2]} 16. Ne4 {[%clk 0:02:10.7]} 16... Rfc8 {[%clk
0:01:18.3]} 17. Qg4 {[%clk 0:01:50.4]} 17... Bxe4 {[%clk 0:01:03]} 18. Rxe4
{[%clk 0:01:47.5]} 18... Nf6 {[%clk 0:00:58.4]} 19. Qe2 {[%clk 0:00:56]} 19...
Nxe4 {[%clk 0:00:52.4]} 20. Qxe4 {[%clk 0:00:56.9]} 20... Rd8 {[%clk 0:00:45.6]}
21. Re1 {[%clk 0:00:56]} 21... Rac8 {[%clk 0:00:40.4]} 22. c3 {[%clk 0:00:53.2]}
22... h6 {[%clk 0:00:37.5]} 23. Be5 {[%clk 0:00:51.5]} 23... Bd6 {[%clk
0:00:29.4]} 24. Bd4 {[%clk 0:00:51.2]} 24... e5 {[%clk 0:00:27.5]} 25. Bb6
{[%clk 0:00:50.3]} 25... Re8 {[%clk 0:00:24.6]} 26. h4 {[%clk 0:00:49.5]} 26...
Kh8 {[%clk 0:00:20.1]} 27. Bd5 {[%clk 0:00:48.9]} 27... Rb8 {[%clk 0:00:17.8]}
28. Be3 {[%clk 0:00:46.7]} 28... f6 {[%clk 0:00:17.1]} 29. Qg6 {[%clk
0:00:44.3]} 29... Qf8 {[%clk 0:00:14.6]} 30. Be4 {[%clk 0:00:42.7]} 30... Qg8
{[%clk 0:00:13.9]} 31. Bxh6 {[%clk 0:00:42.2]} 31... Re7 {[%clk 0:00:10.4]} 32.
Bg5 {[%clk 0:00:38.7]} 32... f5 {[%clk 0:00:05.9]} 33. Bxf5 {[%clk 0:00:38.3]}
1-0

[Event "*** SCC Grand Prix: Titled Tuesday Blitz"]
[Site "Chess.com"]
[Date "2020.09.08"]
[Round "2"]
[White "MestreSoares"]
[Black "gui_borba"]
[Result "0-1"]
[WhiteElo "2102"]
[BlackElo "2389"]
[TimeControl "180+1"]
[EndTime "10:17:23 PDT"]
[Termination "gui_borba won by resignation"]

1. Nf3 {[%clk 0:03:00.9]} 1... c5 {[%clk 0:02:59.4]} 2. b3 {[%clk 0:03:01.1]}
2... Nc6 {[%clk 0:02:59.6]} 3. Bb2 {[%clk 0:03:01.6]} 3... d6 {[%clk 0:03:00.5]}
4. e3 {[%clk 0:03:02.1]} 4... e5 {[%clk 0:03:00]} 5. d4 {[%clk 0:03:02.5]} 5...
e4 {[%clk 0:03:00.4]} 6. Nfd2 {[%clk 0:03:02.2]} 6... cxd4 {[%clk 0:03:00.6]} 7.
exd4 {[%clk 0:03:01.7]} 7... d5 {[%clk 0:03:01]} 8. c4 {[%clk 0:03:00.6]} 8...
f5 {[%clk 0:02:57.6]} 9. Be2 {[%clk 0:02:58.4]} 9... Nf6 {[%clk 0:02:57.5]} 10.
O-O {[%clk 0:02:57.7]} 10... g6 {[%clk 0:02:56.4]} 11. Nc3 {[%clk 0:02:56.2]}
11... Bg7 {[%clk 0:02:56.5]} 12. Nxd5 {[%clk 0:02:52.2]} 12... Nxd5 {[%clk
0:02:57.4]} 13. cxd5 {[%clk 0:02:52]} 13... Ne7 {[%clk 0:02:56.8]} 14. Bc4
{[%clk 0:02:45.4]} 14... Nxd5 {[%clk 0:02:56.1]} 15. Re1 {[%clk 0:02:34.5]}
15... O-O {[%clk 0:02:49.5]} 16. Nf1 {[%clk 0:02:32.5]} 16... Kh8 {[%clk
0:02:44.4]} 17. Ne3 {[%clk 0:02:31.4]} 17... Nf4 {[%clk 0:02:38.2]} 18. Qd2
{[%clk 0:02:24.4]} 18... a6 {[%clk 0:02:24.7]} 19. a4 {[%clk 0:02:21.1]} 19...
Qg5 {[%clk 0:02:19.8]} 20. g3 {[%clk 0:02:18.8]} 20... Nh3+ {[%clk 0:02:02.1]}
21. Kh1 {[%clk 0:02:16]} 21... f4 {[%clk 0:02:00.5]} 22. Ng2 {[%clk 0:02:06.5]}
22... Bg4 {[%clk 0:01:38.6]} 23. d5 {[%clk 0:01:57]} 23... fxg3 {[%clk 0:01:15]}
24. Bxg7+ {[%clk 0:01:48.2]} 24... Kxg7 {[%clk 0:01:15.9]} 25. Qc3+ {[%clk
0:01:34.1]} 25... Kh6 {[%clk 0:01:09.5]} 26. Qxg3 {[%clk 0:01:25.8]} 26... Nxf2+
{[%clk 0:01:05.8]} 27. Kg1 {[%clk 0:01:22.4]} 27... Nh3+ {[%clk 0:01:05.5]} 28.
Kh1 {[%clk 0:01:22.4]} 28... Rf3 {[%clk 0:01:04]} 29. Qh4+ {[%clk 0:01:18.6]}
29... Qxh4 {[%clk 0:01:02.6]} 30. Nxh4 {[%clk 0:01:18.5]} 30... Rf2 {[%clk
0:00:59.8]} 31. Rxe4 {[%clk 0:01:12.2]} 31... Kg5 {[%clk 0:01:00]} 32. Rxg4+
{[%clk 0:00:39.5]} 32... Kxg4 {[%clk 0:00:57.9]} 33. Ng2 {[%clk 0:00:39.9]}
33... Re8 {[%clk 0:00:51.9]} 34. Rd1 {[%clk 0:00:29.4]} 34... Rf6 {[%clk
0:00:40.2]} 35. a5 {[%clk 0:00:18.7]} 35... Nf2+ {[%clk 0:00:39.6]} 36. Kg1
{[%clk 0:00:16.8]} 36... Nxd1 {[%clk 0:00:40.5]} 0-1

[Event "*** SCC Grand Prix: Titled Tuesday Blitz"]
[Site "Chess.com"]
[Date "2020.09.08"]
[Round "2"]
[White "blitis"]
[Black "PauloCesarCosta_sad"]
[Result "1-0"]
[WhiteElo "2505"]
[BlackElo "2284"]
[TimeControl "180+1"]
[EndTime "10:17:24 PDT"]
[Termination "blitis won on time"]

1. e4 {[%clk 0:03:00.9]} 1... e6 {[%clk 0:03:00.1]} 2. d4 {[%clk 0:03:00.5]}
2... d5 {[%clk 0:03:00.6]} 3. exd5 {[%clk 0:03:01.4]} 3... exd5 {[%clk
0:03:00.4]} 4. Qf3 {[%clk 0:03:01.9]} 4... Nf6 {[%clk 0:02:58.3]} 5. h3 {[%clk
0:03:01.8]} 5... Qe7+ {[%clk 0:02:55.4]} 6. Be3 {[%clk 0:02:59.4]} 6... Qb4+
{[%clk 0:02:51.1]} 7. Nd2 {[%clk 0:02:54.3]} 7... Qxb2 {[%clk 0:02:50.7]} 8. Rb1
{[%clk 0:02:53.8]} 8... Qc3 {[%clk 0:02:45.6]} 9. Bd3 {[%clk 0:02:49.3]} 9...
Bd6 {[%clk 0:02:30.7]} 10. Ne2 {[%clk 0:02:49.2]} 10... Qa5 {[%clk 0:02:21.5]}
11. Rb5 {[%clk 0:02:41.2]} 11... Qxa2 {[%clk 0:02:13.1]} 12. O-O {[%clk
0:02:33.5]} 12... O-O {[%clk 0:02:04.6]} 13. Nb3 {[%clk 0:01:52.2]} 13... Nc6
{[%clk 0:01:48.8]} 14. Ra1 {[%clk 0:01:02.4]} 14... Qb2 {[%clk 0:01:47]} 15. Bc1
{[%clk 0:00:58.2]} 15... Qxa1 {[%clk 0:00:31.6]} 16. Nxa1 {[%clk 0:00:57.4]}
16... a6 {[%clk 0:00:32.5]} 17. Rb1 {[%clk 0:00:56.5]} 17... b5 {[%clk
0:00:30.9]} 18. Bg5 {[%clk 0:00:53.9]} 18... Nd7 {[%clk 0:00:17.8]} 19. Qxd5
{[%clk 0:00:49.3]} 19... Bb7 {[%clk 0:00:17.4]} 20. Qf5 {[%clk 0:00:49.3]} 20...
g6 {[%clk 0:00:13.5]} 21. Qxd7 {[%clk 0:00:49.2]} 21... Rab8 {[%clk 0:00:06.8]}
22. Nb3 {[%clk 0:00:47.7]} 22... Nb4 {[%clk 0:00:05.8]} 23. Bf6 {[%clk
0:00:32.5]} 23... Nxd3 {[%clk 0:00:05]} 24. cxd3 {[%clk 0:00:32.4]} 24... Rfe8
{[%clk 0:00:03.8]} 25. Ng3 {[%clk 0:00:29.8]} 25... Bf8 {[%clk 0:00:01.5]} 26.
Nc5 {[%clk 0:00:28.2]} 1-0